[Event "Indian Rapid Championship 2023-24"]
[Site "Nashik"]
[Date "2024.03.06"]
[Round "10.8"]
[White "Pimpalkhare Vedant"]
[Black "Sengupta, Deep"]
[Result "1-0"]
[ECO "D02"]
[WhiteElo "2254"]
[BlackElo "2500"]
[Annotator "RC"]
[PlyCount "111"]
[EventDate "2024.03.02"]
[EventType "swiss"]
[EventCountry "IND"]
[SourceTitle "playchess.com"]
[Source "ChessBase"]
[SourceQuality "1"]
[TimeControl "900+10"]

1. d4 {[%emt 0:00:02]} e6 {[%emt 0:00:06]} 2. g3 {[%emt 0:00:13]} c5 {[%emt 0:00:07]} 3. Nf3 {[%emt 0:01:08]} cxd4 {[%emt 0:00:38]} 4. Nxd4 {[%emt 0:00:02]} d5 {[%emt 0:00:01]} 5. Bg2 {[%emt 0:00:15]} Nf6 {[%emt 0:00:02]} 6. O-O {[%emt 0:00:19]} Be7 {[%emt 0:01:07]} 7. c4 {[%emt 0:00:20]} O-O {[%emt 0:00:06]} 8. cxd5 {[%emt 0:00:15]} Nxd5 {[%emt 0:00:02]} 9. e4 {[%emt 0:00:12]} Nb4 {[%emt 0:00:17]} 10. Nc3 {[%emt 0:00:23]} N8c6 {[%emt 0:01:34]} 11. Nxc6 {[%emt 0:00:56]} bxc6 {[%emt 0:00:41]} 12. Qa4 {[%emt 0:00:19]} Bc5 {[%emt 0:02:32]} 13. e5 {[%emt 0:01:19]} Qb6 {[%emt 0:00:54]} 14. a3 {[%emt 0:01:53]} Nd3 {[%emt 0:01:42]} 15. Qc2 {[%emt 0:01:59]} Ba6 {[%emt 0:04:33]} 16. Na4 {[%emt 0:00:32]} Qb5 {[%emt 0:00:01]} 17. Nxc5 {[%emt 0:02:46]} Qxc5 {[%emt 0:00:02]} 18. Qxc5 {[%emt 0:00:47]} Nxc5 {[%emt 0:00:01]} 19. Rd1 {[%emt 0:00:02]} Nb3 {[%emt 0:02:01]} 20. Rb1 {[%emt 0:00:01]} Rad8 {[%emt 0:00:01]} 21. Bg5 {[%emt 0:00:42]} Rd5 {[%emt 0:01:18]} 22. Bxd5 {[%emt 0:00:37]} cxd5 {[%emt 0:00:01]} 23. Be3 {[%emt 0:00:08]} Ra8 {[%emt 0:00:05]} 24. Rbc1 {[%emt 0:02:12]} Be2 {[%emt 0:00:31]} 25. Re1 {[%emt 0:01:02]} Nxc1 {[%emt 0:00:13]} 26. Rxc1 {[%emt 0:00:01]} f6 {[%emt 0:00:06]} 27. f4 {[%emt 0:00:29]} Bc4 {[%emt 0:00:16]} 28. Rc3 {[%emt 0:00:09]} Rb8 {[%emt 0:00:12]} 29. b4 {[%emt 0:00:31]} a6 {[%emt 0:00:05]} 30. Bd4 {[%emt 0:00:07]} Kf7 {[%emt 0:00:01]} 31. Kf2 {[%emt 0:00:01]} Ra8 {[%emt 0:00:01]} 32. Bb6 {[%emt 0:00:20]} Rb8 {[%emt 0:00:29]} 33. Bd4 {[%emt 0:00:01]} h5 {[%emt 0:00:05]} 34. Ke3 {[%emt 0:00:06]} Kg6 {[%emt 0:00:04]} 35. Ba7 {[%emt 0:00:06]} Rb7 {[%emt 0:00:05]} 36. Bc5 {[%emt 0:00:03]} Kf5 {[%emt 0:00:12]} 37. Kd4 {[%emt 0:00:01]} Kg4 {[%emt 0:00:27]} 38. Bf8 {[%emt 0:00:38]} Kf5 {[%emt 0:00:21]} 39. Bd6 {[%emt 0:00:11]} h4 {[%emt 0:00:17]} 40. gxh4 {[%emt 0:00:09]} a5 {[%emt 0:00:13]} 41. Rg3 {[%emt 0:00:20]} axb4 {[%emt 0:00:01]} 42. axb4 {[%emt 0:00:01]} Ra7 {[%emt 0:00:01]} 43. Kc5 {[%emt 0:00:06]} Rb7 {[%emt 0:00:29]} 44. Kc6 {[%emt 0:00:15]} Ra7 {[%emt 0:00:07]} 45. b5 {[%emt 0:00:05]} d4 {[%emt 0:00:04]} 46. b6 {[%emt 0:00:03]} Ra1 {[%emt 0:00:19]} 47. Kc5 {[%emt 0:00:23]} d3 {[%emt 0:00:09]} 48. Kxc4 {[%emt 0:00:01]} d2 {[%emt 0:00:04]} 49. Rd3 {[%emt 0:00:00]} Rc1+ {[%emt 0:00:13]} 50. Kb5 {[%emt 0:00:07]} Rb1+ {[%emt 0:00:01]} 51. Kc6 {[%emt 0:00:17]} d1=Q {[%emt 0:00:14]} 52. Rxd1 {[%emt 0:00:01]} Rxd1 {[%emt 0:00:01]} 53. b7 {[%emt 0:00:02]} Rb1 {[%emt 0:00:01]} 54. b8=Q {[%emt 0:00:09]} Rxb8 {[%emt 0:00:01]} 55. Bxb8 {[%emt 0:00:00]} Kg4 {[%emt 0:00:06]} 56. Kd7 {[%emt 0:00:05]} 1-0

[Event "Indian Rapid Championship 2023-24"]
[Site "Nashik"]
[Date "2024.03.06"]
[Round "10.9"]
[White "Hari Madhavan N B"]
[Black "Karthik Venkataraman"]
[Result "1/2-1/2"]
[ECO "D02"]
[WhiteElo "2395"]
[BlackElo "2609"]
[Annotator "TA"]
[PlyCount "166"]
[EventDate "2024.03.02"]
[EventType "swiss"]
[EventCountry "IND"]
[SourceTitle "playchess.com"]
[Source "ChessBase"]
[SourceQuality "1"]
[TimeControl "900+10"]

{[%evp 105,166,0,0,0,0,0,0,0,0,0,0,0,0,0,0,0,0,0,0,0,0,0,0,0,0,0,0,0,0,0,0,0,0,0,0,0,0,0,0,0,0,0,0,0,0,0,0,0,0,0,0,0,0,0,0,0,0,0,0,0,0,0,0]} 1. d4 {[%emt 0:00:11]} d5 {[%emt 0:00:04]} 2. Nf3 {[%emt 0:00:03]} Nf6 {[%emt 0:00:09]} 3. Bf4 {[%emt 0:00:01]} c5 {[%emt 0:00:04]} 4. e3 {[%emt 0:00:05]} Nc6 {[%emt 0:00:01]} 5. c3 {[%emt 0:00:02]} Qb6 {[%emt 0:00:03]} 6. Qb3 {[%emt 0:00:07]} c4 {[%emt 0:00:02]} 7. Qc2 {[%emt 0:00:20]} Bf5 {[%emt 0:00:01]} 8. Qc1 {[%emt 0:00:02]} h6 {[%emt 0:00:03]} 9. h3 {[%emt 0:00:05]} e6 {[%emt 0:00:02]} 10. Nbd2 {[%emt 0:00:02]} Be7 {[%emt 0:00:01]} 11. Be2 {[%emt 0:00:03]} O-O {[%emt 0:00:03]} 12. O-O {[%emt 0:00:04]} Rfc8 {[%emt 0:00:09]} 13. Bd1 {[%emt 0:00:08]} Qd8 {[%emt 0:00:00]} 14. Bc2 {[%emt 0:00:02]} b5 {[%emt 0:00:00]} 15. Re1 {[%emt 0:00:07]} b4 {[%emt 0:00:56]} 16. e4 {[%emt 0:00:11]} Nxe4 {[%emt 0:00:15]} 17. Nxe4 {[%emt 0:00:07]} dxe4 {[%emt 0:00:04]} 18. Bxe4 {[%emt 0:00:02]} Bxe4 {[%emt 0:01:15]} 19. Rxe4 {[%emt 0:00:03]} Qd5 {[%emt 0:00:01]} 20. Re2 {[%emt 0:00:36]} Bf8 {[%emt 0:01:28]} 21. Ne5 {[%emt 0:00:13]} Ne7 {[%emt 0:00:02]} 22. Ng4 {[%emt 0:01:01]} Qd8 {[%emt 0:02:24]} 23. cxb4 {[%emt 0:02:09]} Nf5 {[%emt 0:00:13]} 24. a3 {[%emt 0:00:15]} h5 {[%emt 0:01:37]} 25. Ne5 {[%emt 0:00:44]} Qxd4 {[%emt 0:01:05]} 26. Nf3 {[%emt 0:00:29]} Qb6 {[%emt 0:00:19]} 27. Be3 {[%emt 0:00:08]} Qb7 {[%emt 0:01:27]} 28. Rc2 {[%emt 0:00:11]} a5 {[%emt 0:00:35]} 29. bxa5 {[%emt 0:00:24]} Rxa5 {[%emt 0:00:13]} 30. Bd2 {[%emt 0:00:04]} Rd5 {[%emt 0:00:15]} 31. Rxc4 {[%emt 0:02:01]} Rxc4 {[%emt 0:00:02]} 32. Qxc4 {[%emt 0:00:02]} Qxb2 {[%emt 0:00:01]} 33. Qa2 {[%emt 0:00:12]} Qf6 {[%emt 0:01:04]} 34. Rb1 {[%emt 0:00:33]} Bc5 {[%emt 0:01:27]} 35. Bb4 {[%emt 0:02:53]} Ba7 {[%emt 0:00:34]} 36. Qc4 {[%emt 0:00:31]} Nd4 {[%emt 0:00:33]} 37. Nxd4 {[%emt 0:00:06]} Rxd4 {[%emt 0:00:43]} 38. Qc2 {[%emt 0:00:27]} Rf4 {[%emt 0:00:58]} 39. Bc5 {[%emt 0:00:09]} Bxc5 {[%emt 0:00:29]} 40. Qxc5 {[%emt 0:00:02]} Qg6 {[%emt 0:00:03]} 41. Rb5 {[%emt 0:01:19]} Ra4 {[%emt 0:00:51]} 42. Qxh5 {[%emt 0:03:31]} Qxh5 {[%emt 0:00:04]} 43. Rxh5 {[%emt 0:00:03]} f5 {[%emt 0:00:19]} 44. g4 {[%emt 0:00:24]} Rxa3 {[%emt 0:00:36]} 45. gxf5 {[%emt 0:00:02]} Ra5 {[%emt 0:00:02]} 46. Kg2 {[%emt 0:00:18]} exf5 {[%emt 0:00:07]} 47. Rg5 {[%emt 0:00:02]} Kf7 {[%emt 0:00:03]} 48. Rg3 {[%emt 0:00:04]} Ra4 {[%emt 0:00:04]} 49. Rb3 {[%emt 0:00:04]} g6 {[%emt 0:00:05]} 50. Rb6 {[%emt 0:00:02]} Kg7 {[%emt 0:00:01]} 51. Kg3 {[%emt 0:00:20]} Ra3+ {[%emt 0:00:06]} 52. Kg2 {[%emt 0:00:03]} Kh6 {[%emt 0:00:04]} 53. f4 {[%emt 0:00:23]} Rc3 {[%emt 0:00:20]} 54. Rb7 {[%emt 0:00:04]} Rc2+ {[%emt 0:00:10]} 55. Kg3 {[%emt 0:00:02]} Rc3+ {[%emt 0:00:05]} 56. Kg2 {[%emt 0:00:03]} Rc2+ {[%emt 0:00:40]} 57. Kg3 {[%emt 0:00:02]} Ra2 {[%emt 0:00:02]} 58. Rc7 $1 {[%emt 0:00:06]} Ra3+ {[%emt 0:00:02]} 59. Kg2 {[%emt 0:00:02]} Ra1 {[%emt 0:00:02]} 60. Rb7 {[%emt 0:00:04]} Rd1 {[%emt 0:00:03]} 61. Rc7 {[%emt 0:00:02]} Rd3 {[%emt 0:00:56]} 62. Ra7 {[%emt 0:00:02]} Rd8 {[%emt 0:00:02]} 63. Rc7 {[%emt 0:00:03]} Rd6 {[%emt 0:00:11]} 64. Kg3 {[%emt 0:00:03]} Rd3+ {[%emt 0:01:00]} 65. Kg2 {[%emt 0:00:02]} Rd8 {[%emt 0:00:01]} 66. Kg3 {[%emt 0:00:02]} Rg8 {[%emt 0:00:02]} 67. Rb7 {[%emt 0:00:09]} Rf8 {[%emt 0:00:17]} 68. Rc7 {[%emt 0:00:03]} Ra8 {[%emt 0:00:09]} 69. Rb7 {[%emt 0:00:03]} Ra3+ {[%emt 0:00:11]} 70. Kg2 {[%emt 0:00:03]} Ra2+ {[%emt 0:00:01]} 71. Kg3 {[%emt 0:00:01]} Ra6 {[%emt 0:00:24]} 72. Rd7 {[%emt 0:00:04]} Rb6 {[%emt 0:00:04]} 73. Rc7 {[%emt 0:00:03]} Rb3+ {[%emt 0:00:05]} 74. Kg2 {[%emt 0:00:02]} g5 {[%emt 0:00:16]} 75. fxg5+ {[%emt 0:00:05]} Kxg5 {[%emt 0:00:02]} 76. Rc4 {[%emt 0:00:06]} Rb2+ {[%emt 0:00:09]} 77. Kg3 {[%emt 0:00:02]} Rb3+ {[%emt 0:00:16]} 78. Kg2 {[%emt 0:00:02]} Ra3 {[%emt 0:00:02]} 79. Rb4 {[%emt 0:00:03]} f4 {[%emt 0:00:10]} 80. Rb5+ {[%emt 0:00:40]} Kh4 {[%emt 0:00:03]} 81. Rf5 {[%emt 0:00:02]} f3+ {[%emt 0:00:09]} 82. Rxf3 {[%emt 0:00:05]} Rxf3 {[%emt 0:00:02]} 83. Kxf3 {[%emt 0:00:02]} Kxh3 {[%emt 0:00:02]} 1/2-1/2

[Event "Indian Rapid Championship 2023-24"]
[Site "Nashik"]
[Date "2024.03.06"]
[Round "10.10"]
[White "Nithin Babu"]
[Black "Prraneeth Vuppala"]
[Result "1/2-1/2"]
[ECO "C78"]
[WhiteElo "2346"]
[BlackElo "2506"]
[Annotator "TA"]
[PlyCount "127"]
[EventDate "2024.03.02"]
[EventType "swiss"]
[EventCountry "IND"]
[SourceTitle "playchess.com"]
[Source "ChessBase"]
[SourceQuality "1"]
[TimeControl "900+10"]

{[%evp 59,127,168,159,160,260,259,237,195,197,205,193,200,176,150,250,260,263,217,304,316,303,310,266,118,117,106,163,60,383,368,350,268,247,0,0,0,235,-8,-8,-8,-8,-8,-8,-8,-8,-8,-8,-8,-8,-8,-8,-8,0,0,0,0,0,0,0,0,0,0,0,0,0,0,0,0,0,0]} 1. e4 {[%emt 0:00:04]} e5 {[%emt 0:00:32]} 2. Nf3 {[%emt 0:00:02]} Nc6 {[%emt 0:00:02]} 3. Bb5 {[%emt 0:00:03]} a6 {[%emt 0:00:01]} 4. Ba4 {[%emt 0:00:01]} Nf6 {[%emt 0:00:01]} 5. O-O {[%emt 0:00:03]} b5 {[%emt 0:00:01]} 6. Bb3 {[%emt 0:00:02]} Bc5 {[%emt 0:00:02]} 7. c3 {[%emt 0:00:05]} d6 {[%emt 0:00:07]} 8. d4 {[%emt 0:00:04]} Bb6 {[%emt 0:00:02]} 9. Be3 {[%emt 0:00:07]} O-O {[%emt 0:00:21]} 10. Nbd2 {[%emt 0:00:06]} h6 {[%emt 0:00:08]} 11. h3 {[%emt 0:00:22]} Re8 {[%emt 0:00:03]} 12. Bc2 {[%emt 0:01:11] C78: Ruy Lopez: Archangelsk and Möller Defences.} Rb8 {[%emt 0:01:04]} 13. a3 {[%emt 0:00:18]} exd4 {[%emt 0:00:59]} 14. cxd4 {[%emt 0:00:05]} Ne7 {[%emt 0:00:02]} 15. b4 {[%emt 0:00:24]} Bb7 $146 {[%emt 0:00:28]} ({Predecessor:} 15... Ng6 16. Re1 Bb7 17. Qb1 Re7 18. a4 Qe8 19. d5 Bxe3 20. Rxe3 c6 21. axb5 axb5 22. dxc6 Bxc6 {½-½ Andersen,G (2247)-Bick,G (2391) Los Angeles 1000GM Spring op 2023 (8)}) 16. Bd3 {[%emt 0:01:13]} Ng6 {[%emt 0:00:26]} 17. Qc2 {[%emt 0:00:10]} Nh5 {[%emt 0:00:12]} 18. Rfe1 {[%emt 0:00:46]} Nhf4 {[%emt 0:00:54]} 19. Bf1 {[%emt 0:00:04]} Qf6 {[%emt 0:00:59]} 20. Rac1 {[%emt 0:01:26]} Re7 {[%emt 0:04:12]} 21. g3 {[%emt 0:00:30]} Ne6 {[%emt 0:00:11]} 22. d5 {[%emt 0:01:44]} Bxe3 {[%emt 0:00:24]} 23. Rxe3 {[%emt 0:00:11]} Ng5 {[%emt 0:00:20]} 24. h4 {[%emt 0:02:07]} Nxf3+ {[%emt 0:00:11]} 25. Rxf3 {[%emt 0:00:11]} Qd4 {[%emt 0:00:12]} 26. Rc3 {[%emt 0:00:32]} Ne5 {[%emt 0:02:06]} 27. Nb3 {[%emt 0:00:38]} Qb6 {[%emt 0:00:54]} 28. Na5 {[%emt 0:01:47]} Ng4 {[%emt 0:00:39]} 29. Bg2 {[%emt 0:01:10]} f5 {[%emt 0:00:59]} 30. Nxb7 {[%emt 0:00:43]} (30. exf5 Rbe8 31. f6 (31. Rxc7 $2 Rxc7 32. Nc6 Bc8 $19) 31... Re1+ 32. Rxe1 Rxe1+ 33. Bf1 Bxd5 $11) 30... Rxb7 {[%emt 0:00:16]} 31. exf5 {[%emt 0:00:20]} Rb8 {[%emt 0:01:15]} (31... Qd4 $16 32. Rd3 Qf6) 32. Bf3 $18 {[%emt 0:00:18]} (32. Rxc7 $2 Rxc7 33. Bf3 Rxc2 $19) 32... Ne5 {[%emt 0:00:07]} 33. Be2 {[%emt 0:00:31]} (33. Rxc7 $2 Nxf3+ 34. Kg2 Ne1+ 35. Rxe1 Qxc7 $19) 33... Rf8 {[%emt 0:01:13]} 34. Rxc7 {[%emt 0:00:33]} Rxc7 {[%emt 0:00:04]} 35. Qxc7 {[%emt 0:00:02]} Qd4 {[%emt 0:00:02]} 36. Qc3 {[%emt 0:00:45]} Qxd5 {[%emt 0:00:18] [#]} (36... Qe4 $16 37. Qe3 Qxe3 38. fxe3 Rxf5) 37. f4 $1 $18 {[%emt 0:00:32]} Nd7 {[%emt 0:00:37]} 38. Qd3 {[%emt 0:00:04]} Rxf5 {[%emt 0:00:39]} (38... Qxd3 {might work better.} 39. Bxd3 Re8) 39. Rc8+ $18 {[%emt 0:00:34]} Nf8 {[%emt 0:00:25]} 40. Qxd5+ {[%emt 0:00:31]} Rxd5 {[%emt 0:00:01]} 41. Bg4 {[%emt 0:00:01]} (41. Kf2 $18) 41... Kf7 $16 {[%emt 0:00:06]} 42. Rc3 {[%emt 0:00:48]} Ne6 {[%emt 0:00:10]} (42... Rd2 $16 {was necessary.}) 43. f5 {[%emt 0:00:26]} (43. Kf2 $18) 43... Nd4 $2 {[%emt 0:00:16][%mdl 8192] [#]} ({Black should play} 43... Nf8 $14) 44. Rd3 $1 $18 {[%emt 0:00:05]} Kf6 {[%emt 0:00:02]} 45. Kf2 {[%emt 0:00:13]} Ke5 {[%emt 0:00:07]} 46. Re3+ {[%emt 0:00:29]} Kf6 {[%emt 0:00:01]} 47. Rd3 {[%emt 0:00:10]} Ke5 {[%emt 0:00:12]} 48. Bh3 $2 {[%emt 0:00:19]} (48. Rd2 $18) 48... Nc2 $1 $11 {[%emt 0:00:12]} 49. Rxd5+ {[%emt 0:00:18]} Kxd5 {[%emt 0:00:01]} 50. g4 $1 {[%emt 0:00:09]} Ke5 $1 {[%emt 0:00:34]} (50... Nxa3 $2 {is the wrong capture.} 51. g5 hxg5 52. hxg5 $18) 51. g5 {[%emt 0:00:08]} hxg5 {[%emt 0:00:06]} (51... Nxa3 52. f6 hxg5 53. fxg7 gxh4 54. g8=Q $18 (54. g8=R Kd4 $18)) 52. hxg5 {[%emt 0:00:01]} Nd4 $1 {[%emt 0:00:14]} (52... Nxa3 $2 {perishes.} 53. f6 gxf6 54. g6 $18) 53. f6 $1 {[%emt 0:00:19]} gxf6 {[%emt 0:00:01]} 54. gxf6 {[%emt 0:00:12]} (54. g6 $5 Ne6 $8 55. Bg2 $11) 54... Kxf6 {[%emt 0:00:07]} 55. Bc8 {[%emt 0:00:01]} Ke5 {[%emt 0:00:18]} 56. Bxa6 {[%emt 0:00:05]} Ke4 {[%emt 0:00:16]} 57. Ke1 {[%emt 0:00:13]} Kd5 {[%emt 0:00:16]} 58. Kd2 {[%emt 0:00:03]} Kc4 {[%emt 0:00:10]} 59. a4 {[%emt 0:00:05]} Kxb4 {[%emt 0:00:08]} 60. axb5 {[%emt 0:00:07]} Nxb5 {[%emt 0:00:03]} 61. Bxb5 {[%emt 0:00:21]} Kxb5 {[%emt 0:00:02]} 62. Kd3 {[%emt 0:00:01]} Kc5 {[%emt 0:00:23]} 63. Kc3 {[%emt 0:00:02]} Kd5 {[%emt 0:00:01]} (63... d5 $5) 64. Kd3 {[%emt 0:00:01]} 1/2-1/2

[Event "Indian Rapid Championship 2023-24"]
[Site "Nashik"]
[Date "2024.03.06"]
[Round "11.1"]
[White "Ghosh, Diptayan"]
[Black "Ayush Sharma"]
[Result "1/2-1/2"]
[ECO "D02"]
[WhiteElo "2559"]
[BlackElo "2311"]
[Annotator "TA"]
[PlyCount "27"]
[EventDate "2024.03.02"]
[EventType "swiss"]
[EventCountry "IND"]
[SourceTitle "playchess.com"]
[Source "ChessBase"]
[SourceQuality "1"]
[TimeControl "900+10"]

{[%evp 10,27,33,27,46,44,42,40,86,112,93,94,118,98,70,23,33,0,6,3]} 1. Nf3 {[%emt 0:00:04]} Nf6 {[%emt 0:00:03]} 2. g3 {[%emt 0:00:02]} d5 {[%emt 0:00:05]} 3. Bg2 {[%emt 0:00:02]} c5 {[%emt 0:00:02]} 4. O-O {[%emt 0:00:06]} Nc6 {[%emt 0:00:44]} 5. d4 {[%emt 0:00:02]} Bg4 {[%emt 0:00:20]} 6. Ne5 {[%emt 0:00:42] Und jetzt Nxg4 wäre schön.} Bf5 {[%emt 0:01:27]} 7. Nxc6 {[%emt 0:00:47]} bxc6 {[%emt 0:00:01]} 8. dxc5 {[%emt 0:00:02][%cal Oc2c4]} Qa5 {[%emt 0:00:45] [#]} (8... e5 $14) 9. c4 $1 $16 {[%emt 0:01:06]} e6 {[%emt 0:00:40]} 10. Nd2 {[%emt 0:00:46]} Qxc5 {[%emt 0:00:56]} 11. cxd5 {[%emt 0:00:16]} Bc2 {[%emt 0:00:22] Es drohte Nb3} 12. Qe1 {[%emt 0:02:05]} (12. b4 $1 $14 Qc3 (12... Qxb4 $2 {ist das falsche Schlagen.} 13. Qxc2 Qc5 14. Qxc5 $18) 13. Nb1) 12... cxd5 $11 {[%emt 0:00:23]} 13. Nb3 {[%emt 0:00:03]} Qc4 {[%emt 0:01:02][%cal Of8d6]} 14. Bd2 {[%emt 0:00:58] Gewichteter Fehlerwert: Weiß=0.13 (sehr präzise) /Schwarz=0.12 (sehr präzise) .  Fehler:       	Weiß=1     	Schwarz=1     Ungenau:       	Weiß=1     	---        OK:         	Weiß=5     	Schwarz=1     Bester:       	---       	Schwarz=1} 1/2-1/2

[Event "Indian Rapid Championship 2023-24"]
[Site "Nashik"]
[Date "2024.03.06"]
[Round "11.2"]
[White "Raja Rithvik R"]
[Black "Aronyak Ghosh"]
[Result "1/2-1/2"]
[ECO "E16"]
[WhiteElo "2532"]
[BlackElo "2517"]
[Annotator "TA"]
[PlyCount "46"]
[EventDate "2024.03.02"]
[EventType "swiss"]
[EventCountry "IND"]
[SourceTitle "playchess.com"]
[Source "ChessBase"]
[SourceQuality "1"]
[TimeControl "900+10"]

{[%evp 14,46,28,21,25,28,26,7,0,0,0,0,0,0,0,0,0,0,8,0,17,6,13,8,3,9,7,8,9,14,8,0,0,0,0]} 1. d4 {[%emt 0:00:05]} Nf6 {[%emt 0:00:15]} 2. c4 {[%emt 0:00:02]} e6 {[%emt 0:00:04]} 3. Nf3 {[%emt 0:00:02]} b6 {[%emt 0:00:16]} 4. g3 {[%emt 0:00:03]} Bb7 {[%emt 0:00:19]} 5. Bg2 {[%emt 0:00:02]} Bb4+ {[%emt 0:00:02]} 6. Bd2 {[%emt 0:00:02]} c5 {[%emt 0:00:02]} 7. Bxb4 {[%emt 0:00:58]} cxb4 {[%emt 0:00:02]} 8. O-O {[%emt 0:00:10]} a5 {[%emt 0:00:22]} 9. a3 {[%emt 0:00:05]} Na6 {[%emt 0:00:22]} 10. axb4 {[%emt 0:00:55]} Nxb4 {[%emt 0:00:06] The position is equal.} 11. Nc3 {[%emt 0:00:02][%cal Od4d5]} O-O {[%emt 0:00:26]} 12. Qd2 {[%emt 0:01:17]} Rc8 {[%emt 0:00:28]} 13. b3 $1 {[%emt 0:00:02]} Ne4 {[%emt 0:00:58]} 14. Nxe4 {[%emt 0:00:04]} Bxe4 {[%emt 0:00:02]} 15. Ne5 {[%emt 0:00:33]} Bxg2 {[%emt 0:01:16]} 16. Kxg2 {[%emt 0:00:01]} d6 {[%emt 0:00:34]} 17. Nd3 {[%emt 0:00:10]} Nxd3 {[%emt 0:00:30]} 18. Qxd3 {[%emt 0:00:04]} d5 {[%emt 0:00:05]} 19. Rfc1 {[%emt 0:03:12]} Qd6 {[%emt 0:00:39]} 20. Qc3 {[%emt 0:01:50]} Rc6 {[%emt 0:03:45]} 21. c5 {[%emt 0:01:06]} Qb8 {[%emt 0:00:13]} 22. Qd2 {[%emt 0:01:31]} h6 {[%emt 0:02:55]} 23. Rab1 {[%emt 0:02:36]} Qa8 {[%emt 0:00:12] An uneventful encounter.   Weighted Error Value: White=0.03 (flawless) /Black=0.02 (flawless) .  OK:         	White=4     	Black=10     Strong:       	White=1     	---} 1/2-1/2

[Event "Indian Rapid Championship 2023-24"]
[Site "Nashik"]
[Date "2024.03.06"]
[Round "11.3"]
[White "Srihari L R"]
[Black "Wagh Suyog"]
[Result "1/2-1/2"]
[ECO "D45"]
[WhiteElo "2490"]
[BlackElo "2250"]
[Annotator "TA"]
[PlyCount "129"]
[EventDate "2024.03.02"]
[EventType "swiss"]
[EventCountry "IND"]
[SourceTitle "playchess.com"]
[Source "ChessBase"]
[SourceQuality "1"]
[TimeControl "900+10"]

{[%evp 32,129,28,14,31,-13,0,-27,-33,-99,-19,-113,-125,-329,-327,-317,-333,-345,-46,-78,-64,-81,-66,-72,-68,-89,-84,-97,-92,-93,-70,-97,-88,-91,-91,-92,-95,-104,0,-95,-90,-99,-91,-104,-103,-104,-108,-106,-112,-110,-99,-92,-102,-102,0,-98,-94,-95,-92,-95,-93,-97,0,-120,-106,-129,-120,-118,-121,-169,-123,-121,-101,-123,-63,-69,-64,-191,-216,-225,-220,-269,-256,-243,-2,-6,0,0,0,0,0,0,0,-144,-125,-120,-99,-132,0,0]} 1. c4 {[%emt 0:00:06]} Nf6 {[%emt 0:00:48]} 2. Nf3 {[%emt 0:00:16]} e6 {[%emt 0:00:05]} 3. Nc3 {[%emt 0:00:03]} d5 {[%emt 0:00:01]} 4. d4 {[%emt 0:00:15]} c6 {[%emt 0:01:55]} 5. e3 {[%emt 0:00:03]} Nbd7 {[%emt 0:00:07]} 6. Qc2 {[%emt 0:00:02]} Bd6 {[%emt 0:00:13]} 7. b3 {[%emt 0:00:02]} O-O {[%emt 0:00:09]} 8. Be2 {[%emt 0:00:01]} b6 {[%emt 0:00:11]} 9. O-O {[%emt 0:00:03]} Bb7 {[%emt 0:00:01]} 10. Bb2 {[%emt 0:00:02]} Qe7 {[%emt 0:00:13]} 11. Rad1 {[%emt 0:00:02]} Rfe8 {[%emt 0:00:05]} 12. Rfe1 {[%emt 0:00:03]} Rac8 {[%emt 0:00:22]} 13. e4 {[%emt 0:01:56]} Nxe4 {[%emt 0:00:20]} 14. Nxe4 {[%emt 0:00:02]} dxe4 {[%emt 0:00:01]} 15. Qxe4 {[%emt 0:00:03]} Nf8 {[%emt 0:01:54]} 16. Bf1 {[%emt 0:02:52]} Qc7 {[%emt 0:01:10]} 17. h4 {[%emt 0:04:01]} c5 {[%emt 0:00:45]} 18. Qe3 {[%emt 0:00:55]} f6 {[%emt 0:01:49]} 19. h5 {[%emt 0:00:14]} Rcd8 {[%emt 0:00:37]} 20. Qc3 {[%emt 0:01:44]} (20. dxc5 $15 Bxc5 21. Qe2) 20... h6 {[%emt 0:00:19]} (20... cxd4 $17 21. Nxd4 Bh2+ 22. Kh1 Qf4) 21. d5 {[%emt 0:00:26]} (21. Be2 $1 $11 {keeps the balance.}) 21... Qf7 {[%emt 0:00:37]} 22. dxe6 $2 {[%emt 0:02:22]} (22. Nh4 $17) 22... Nxe6 $19 {[%emt 0:00:56]} (22... Qxh5 23. Rd5 Bxd5 24. cxd5 $17) 23. g3 {[%emt 0:00:51]} Qxh5 {[%emt 0:00:19]} 24. Bg2 {[%emt 0:00:01]} Qf7 $2 {[%emt 0:00:48]} (24... Be5 $19 25. Rxd8 Bxc3 26. Rxe8+ Qxe8 27. Bxc3 Qf7) 25. Qc2 {[%emt 0:00:09]} Bf8 {[%emt 0:00:48]} 26. Rxd8 {[%emt 0:00:29]} Nxd8 {[%emt 0:00:06]} 27. Rxe8 {[%emt 0:00:38]} Qxe8 {[%emt 0:00:01]} 28. Qd3 {[%emt 0:00:01]} Be4 {[%emt 0:01:10]} 29. Qe3 {[%emt 0:00:18]} Bc6 {[%emt 0:00:12]} 30. Qd3 {[%emt 0:00:31]} Qd7 {[%emt 0:00:26]} 31. Qe2 {[%emt 0:00:24]} Qe6 {[%emt 0:00:43]} 32. Qd3 {[%emt 0:00:31]} Nf7 {[%emt 0:00:23]} 33. Bc3 {[%emt 0:00:05]} Qe4 {[%emt 0:00:44]} 34. Qd1 {[%emt 0:00:19]} Qe6 {[%emt 0:00:42]} 35. Qd3 $1 {[%emt 0:00:11]} Qd7 {[%emt 0:00:55]} 36. Qe2 {[%emt 0:00:09]} Qb7 {[%emt 0:00:09]} 37. a3 {[%emt 0:00:54]} Qe7 {[%emt 0:00:23]} 38. Qd2 {[%emt 0:00:11]} Qe6 {[%emt 0:00:15]} 39. Qd3 {[%emt 0:00:05]} Qe4 {[%emt 0:00:19]} 40. Qd1 {[%emt 0:00:02]} Qe8 {[%emt 0:00:14]} 41. Qd3 {[%emt 0:00:14]} Qd7 {[%emt 0:00:06]} 42. Qe2 {[%emt 0:00:04]} Qe8 {[%emt 0:00:29]} 43. Qd3 $1 {[%emt 0:00:02]} Be4 {[%emt 0:00:05]} 44. Qe3 {[%emt 0:00:03]} Qa8 {[%emt 0:00:02]} 45. Qe2 {[%emt 0:00:39]} Qb7 {[%emt 0:00:11]} 46. Qe3 {[%emt 0:00:02]} Bc6 {[%emt 0:00:14]} (46... Bd6 $17 47. a4 Qe7) 47. b4 {[%emt 0:00:20]} (47. Qe2 $1 $11 {was the only way to keep the balance.}) 47... Qe7 {[%emt 0:00:19]} 48. Qd2 {[%emt 0:00:10]} Qe6 {[%emt 0:00:03]} 49. b5 {[%emt 0:00:09]} Be4 {[%emt 0:00:18]} 50. Qe2 {[%emt 0:00:04] [#]} (50. Qe1 $17 {was necessary.}) 50... Bf5 {[%emt 0:00:10]} (50... Qg4 $1 $19 51. a4 Bg6 (51... Ng5 $2 52. Nd4 $19)) 51. Qf1 $17 {[%emt 0:00:03]} Qd7 {[%emt 0:00:12]} 52. Nh4 {[%emt 0:00:03]} Be6 {[%emt 0:00:02]} (52... Bd3 $17 53. Qd1 Qd6) 53. Bc6 $15 {[%emt 0:00:26]} Qc8 {[%emt 0:00:14]} 54. Qe2 {[%emt 0:00:03]} (54. Ng2 $15) 54... Nd6 $19 {[%emt 0:00:05]} 55. Ng6 {[%emt 0:00:23]} Bxc4 {[%emt 0:00:16]} 56. Ne7+ {[%emt 0:00:08]} Bxe7 {[%emt 0:00:11]} 57. Qxe7 {[%emt 0:00:01]} Nf7 $2 {[%emt 0:00:13]} (57... Nxb5 $19 58. Bd7 Qf8) 58. Qxa7 $11 {[%emt 0:00:09]} Qh3 59. Bg2 {[%emt 0:00:02]} Qe6 {[%emt 0:00:08]} 60. a4 {[%emt 0:00:07]} ({But not} 60. Bc6 Ng5 (60... Qe2 61. Qa8+ Kh7 62. Be4+ g6 63. Bg2 $11) 61. Qxb6 Qe2 62. Qd8+ (62. Qxc5 $2 Nh3+ 63. Kh2 Nxf2 $17) 62... Kh7 $15) 60... Ng5 61. a5 {[%emt 0:00:09]} Qd6 {[%emt 0:00:31]} 62. Qxb6 {[%emt 0:00:26]} (62. Qa8+ $11 {remains equal.} Kf7 63. axb6 Qd1+ (63... Qxb6 $2 {loses.} 64. Bc6 $18) 64. Kh2 Qh5+ 65. Kg1 Qd1+ 66. Kh2 Qh5+ 67. Kg1 Qd1+) 62... Qd1+ $17 {[%emt 0:00:01]} 63. Kh2 {[%emt 0:00:01]} Qh5+ {[%emt 0:00:01]} 64. Kg1 {[%emt 0:00:01] [#]} Qd1+ {[%emt 0:00:04]} ({Better is} 64... Nf3+ $1 $17 65. Bxf3 Qxf3 66. Qd8+ Kh7) 65. Kh2 {[%emt 0:00:01]} 1/2-1/2